bitfinex-derivatives/quotes_ETHF0:USTF0_20241231
["timestamp","ask_amount","ask_price","bid_price","bid_amount"]
[1735657988404,0.8737,3421.1,3420.1,3.2078]
[1735657988605,0.2927,3420.7,3420.4,0.29272]
[1735657988805,0.2927,3420.7,3420.1,3.2078]
[1735657988806,0.29271,3420.6,3420.3,0.29273]
[1735657989107,0.8737,3421.1,3420.3,0.29273]
[1735657989308,0.29271,3420.6,3420.4,0.29272]
[1735657989710,0.8737,3421.1,3420.4,0.29272]
[1735657989906,3.2078,3420.8,3420.1,3.2078]
[1735657990213,0.29273,3420.4,3420.1,0.29275]
[1735657990413,0.4567,3420.3,3420.1,0.29275]
[1735657990905,0.4567,3420.3,3420.2,0.29274]
[1735657991507,0.4567,3420.3,3419.7,7.32873715]
[1735657991706,0.4567,3420.3,3420.2,0.29274]
[1735657991904,0.4567,3420.3,3419.7,7.32873715]
[1735657992111,0.4567,3420.3,3420.2,0.29274]
[1735657992611,0.4567,3420.3,3419.7,7.32873715]
[1735657992813,0.29276,3420.0,3419.7,4.5228]
[1735657993013,0.29276,3420.0,3419.8,0.29277]
[1735657993209,0.29276,3420.0,3419.7,3.2078]
[1735657993210,0.4567,3420.3,3419.7,3.2078]
[1735657993421,0.74944,3420.3,3419.7,3.2078]
[1735657993720,0.74944,3420.3,3420.2,0.29274]
[1735657994011,0.4567,3420.3,3420.2,3.09867715]
[1735657994204,3.2078,3420.8,3420.7,0.2927]
[1735657995215,0.4554,3421.1,3421.0,0.29267]
[1735657995516,3.2078,3421.3,3421.2,0.29266]
[1735657996711,3.6371,3421.9,3421.8,0.2926]
[1735657996917,0.4374,3422.4,3421.7,3.2078]
[1735657997222,0.4374,3422.4,3421.8,2.80593715]
[1735657997414,0.4374,3422.4,3422.3,0.29256]
[1735657997616,0.4374,3422.4,3422.2,0.29256]
[1735657997816,0.4374,3422.4,3422.3,0.29256]
[1735657998211,3.6371,3422.7,3422.0,1.315]
[1735657998416,3.6371,3422.7,3422.6,0.29254]
[1735657998417,3.2078,3422.7,3422.6,0.29254]
[1735657998920,0.29249,3423.2,3422.3,1.02397]
[1735657999117,0.29249,3423.2,3422.3,0.29256]
[1735657999319,3.2078,3423.3,3422.6,2.80593715]
[1735657999516,3.50028,3423.3,3423.0,0.2925]
[1735657999720,3.50028,3423.3,3422.6,2.80593715]
[1735658000417,3.2078,3423.7,3423.0,2.80593715]
[1735658000613,3.2078,3423.7,3422.9,3.2078]
[1735658000614,3.2078,3423.7,3423.4,2.80593715]
[1735658000813,3.2078,3423.7,3423.6,0.29245]
[1735658001111,3.2078,3424.1,3423.4,2.80593715]
[1735658001316,3.2078,3424.1,3423.8,0.29243]
[1735658001510,3.2078,3424.1,3423.4,2.80593715]
[1735658001511,3.2078,3424.1,3423.9,0.29242]
[1735658002413,3.2078,3424.5,3424.4,0.29238]
[1735658002612,3.2078,3425.2,3424.4,0.29238]
[1735658002815,3.50012,3425.2,3424.6,0.29236]
[1735658003116,3.50012,3425.2,3424.5,0.29237]
[1735658003714,0.29233,3425.1,3424.4,0.29237]
[1735658004111,0.29233,3425.1,3424.5,0.29237]
[1735658004318,3.2078,3425.2,3424.5,0.29237]
[1735658004519,3.2078,3425.2,3424.3,3.2078]
[1735658004520,3.2078,3424.8,3424.4,0.29238]
[1735658004719,3.2078,3424.8,3424.5,0.29237]
[1735658004927,3.2078,3425.2,3424.8,0.29234]
[1735658005220,3.2078,3425.2,3424.7,3.2078]
[1735658005426,0.429,3425.6,3425.0,2.80593715]
[1735658005620,3.2078,3426.1,3425.4,2.80593715]
[1735658005921,3.2078,3426.1,3425.7,0.29227]
[1735658006222,3.2078,3426.1,3425.9,0.29225]
[1735658006436,3.2078,3426.1,3425.4,2.80593715]
[1735658006817,3.2078,3425.7,3424.9,1.314]
[1735658007123,1.314,3426.6,3424.6,2.80593715]
[1735658007124,3.2078,3425.3,3424.6,2.80593715]
[1735658007620,3.2078,3425.3,3425.0,0.29233]
[1735658007822,3.2078,3425.3,3424.6,2.80593715]
[1735658008522,3.2078,3425.3,3425.0,2.80593715]
[1735658008723,0.8878,3425.6,3425.0,6.01373715]
[1735658009420,3.2078,3425.8,3424.9,0.29234]
[1735658009421,0.29227,3425.7,3424.9,0.29234]
[1735658009623,0.2923,3425.4,3424.8,0.29234]
[1735658009817,0.29234,3424.9,3424.2,0.2924]
[1735658010118,3.2078,3424.6,3424.2,0.2924]
[1735658010321,3.2078,3424.6,3423.8,3.2078]
[1735658010724,0.29238,3424.4,3423.8,0.29243]
[1735658010924,0.29242,3424.0,3423.7,3.2078]
[1735658011125,3.2078,3424.2,3423.3,3.2078]
[1735658011320,3.2078,3423.8,3422.9,3.2078]
[1735658011519,0.4212,3423.7,3422.7,2.80593715]
[1735658011722,0.29247,3423.4,3422.9,0.2925]
[1735658012026,0.4212,3423.7,3422.3,7.31]
[1735658012027,3.2078,3423.0,3422.3,0.29255]
[1735658012323,3.50031,3423.0,3422.1,3.2078]
[1735658012527,3.2078,3423.0,3422.1,3.2078]
[1735658012724,0.29251,3422.9,3422.5,0.29254]
[1735658012925,3.2078,3423.0,3422.1,3.2078]
[1735658013120,3.5003,3423.0,3422.6,0.29253]
[1735658013322,3.2078,3423.0,3422.8,0.29252]
[1735658013627,3.2078,3423.0,3422.1,3.2078]
[1735658013830,3.2078,3423.0,3422.7,0.29252]
[1735658014121,3.2078,3423.0,3422.1,3.2078]
[1735658014317,3.2078,3423.0,3422.7,0.29252]
[1735658014514,3.2078,3423.0,3422.3,1.313]
[1735658014714,3.2078,3423.0,3422.7,0.29252]
[1735658014925,3.2078,3423.0,3422.3,1.313]
[1735658015220,3.2078,3423.0,3422.9,0.29251]
[1735658016426,3.2078,3423.0,3422.7,0.29252]
[1735658016623,3.2078,3423.0,3422.1,3.2078]
[1735658016926,0.29254,3422.6,3422.2,0.29257]
[1735658017323,0.29254,3422.6,3422.3,0.29256]
[1735658017525,3.50034,3422.6,3422.3,0.29256]
[1735658017828,3.2078,3422.6,3422.4,0.29255]
[1735658018222,3.2078,3422.6,3421.7,4.5218]
[1735658018421,3.2078,3422.6,3421.8,0.73152]
[1735658018623,3.2078,3422.6,3421.7,4.5218]
[1735658019021,3.2078,3422.6,3422.0,0.29258]
[1735658019022,0.29257,3422.3,3422.0,0.29258]
[1735658019326,0.29257,3422.2,3421.9,0.29259]
[1735658019527,0.29257,3422.3,3421.7,3.2078]
[1735658019824,0.29257,3422.3,3422.0,0.29258]
[1735658020024,0.29256,3422.4,3422.0,0.29258]
[1735658020220,0.29259,3422.0,3421.7,0.29261]
[1735658020524,3.50041,3421.8,3421.6,0.29262]
[1735658020727,3.2078,3421.8,3421.7,0.29261]
[1735658020923,0.4366,3422.3,3422.0,0.29258]
[1735658020924,0.72917,3422.3,3422.0,0.29258]
[1735658021129,0.4366,3422.3,3421.1,3.93946]
[1735658021439,0.29259,3422.1,3421.8,0.2926]
[1735658021728,0.29259,3422.0,3421.7,0.29261]
[1735658021922,0.4366,3422.3,3421.1,3.93947]
[1735658021923,0.29258,3422.1,3421.1,3.93947]
[1735658022119,0.4366,3422.3,3421.1,3.93947]
[1735658022322,0.29259,3422.1,3421.3,0.29265]
[1735658022521,0.29259,3422.1,3421.2,0.73164]
[1735658023024,0.4366,3422.3,3421.2,0.73164]
[1735658023230,3.2078,3421.9,3421.1,3.2078]
[1735658023431,5.4366,3422.3,3420.3,0.2947]
[1735658023432,3.2078,3421.5,3420.6,1.314]
[1735658023730,0.4624,3421.4,3420.6,1.314]
[1735658023925,0.71265,3421.3,3420.9,0.29267]
[1735658024323,0.29267,3421.1,3420.7,0.29269]
[1735658024523,0.42,3421.3,3420.9,0.29267]
[1735658024524,0.29266,3421.2,3420.9,0.29267]
[1735658024728,0.29266,3421.2,3420.9,0.29268]
[1735658025026,0.8413,3421.3,3420.6,1.314]
[1735658025222,0.29269,3421.2,3421.0,0.2927]
[1735658025424,3.50049,3421.1,3420.9,0.29271]
[1735658025727,3.2078,3421.1,3420.6,1.314]
[1735658026030,0.2927,3421.0,3420.6,0.29273]
[1735658026234,3.2078,3421.1,3420.5,3.2078]
[1735658026428,3.2078,3421.1,3421.0,0.2927]
[1735658027024,3.50049,3421.1,3420.9,0.29271]
[1735658027227,3.2078,3421.1,3420.5,3.2078]
[1735658027632,3.2078,3421.1,3421.0,0.2927]
[1735658028333,0.42,3421.3,3421.2,0.29268]
[1735658028521,3.2078,3421.5,3421.4,0.29267]
[1735658029129,3.2078,3422.1,3420.9,3.2078]
[1735658029335,3.2078,3422.1,3421.2,0.73172]
[1735658029830,3.2078,3422.1,3421.9,0.29262]
[1735658030032,0.29262,3422.0,3421.8,0.29263]
[1735658030428,3.2078,3422.1,3421.3,0.7317]
[1735658030631,3.2078,3422.1,3421.0,1.314]
[1735658030632,0.29262,3422.0,3421.0,2.04576]
[1735658030828,3.2078,3422.1,3421.1,0.73174]
[1735658031029,0.29262,3422.0,3421.8,0.29263]
[1735658031231,0.29262,3422.0,3421.9,0.29262]
[1735658031431,3.50041,3422.1,3421.9,0.29262]
[1735658031626,0.29262,3422.0,3421.8,0.29263]
[1735658031935,0.29262,3422.0,3421.0,0.73176]
[1735658032230,3.2078,3422.1,3421.1,0.73174]
[1735658032435,3.2078,3422.1,3422.0,0.29262]
[1735658032638,3.50041,3422.1,3421.9,0.29262]
[1735658032935,3.2078,3422.1,3421.6,0.29265]
[1735658033137,0.29264,3421.8,3421.6,0.29265]
[1735658033328,3.2078,3421.7,3421.6,0.29265]
[1735658039436,3.50045,3421.7,3421.5,0.29265]
[1735658039634,3.50045,3421.7,3421.6,0.29265]
[1735658041536,3.2078,3421.7,3420.7,0.73181]
[1735658041735,3.2078,3421.7,3420.6,6.00112597]
[1735658041736,3.2078,3421.3,3420.8,0.29271]
[1735658042041,0.2927,3421.0,3420.9,0.29271]
[1735658042237,3.2078,3421.3,3420.4,0.73189]
[1735658042436,3.2078,3421.3,3421.2,0.29268]
[1735658042635,1.3368,3421.6,3420.7,0.73182]
[1735658042842,3.2078,3421.3,3420.7,0.73182]
[1735658043039,3.2078,3421.3,3420.6,2.79332597]
[1735658043239,3.2078,3421.3,3420.2,4.5218]
[1735658043240,3.2078,3421.3,3421.2,0.29268]
[1735658044440,3.2078,3421.3,3420.8,0.73179]
[1735658044642,3.2078,3421.3,3421.2,0.29268]
[1735658045133,3.2078,3421.4,3421.3,0.29268]
[1735658045740,3.50048,3421.4,3420.8,0.73181]
[1735658045945,3.50048,3421.4,3421.3,0.29268]
[1735658046344,3.2078,3421.4,3421.3,0.29268]
[1735658046539,3.2078,3421.4,3420.6,6.00112597]
[1735658046740,3.2078,3421.4,3421.3,0.29268]
[1735658047541,3.2078,3421.4,3420.6,6.00112597]
[1735658047736,3.2078,3421.4,3421.3,0.29268]
[1735658048842,0.4601,3421.6,3421.5,0.29266]
[1735658049040,3.2078,3421.8,3421.7,0.29264]
[1735658049939,0.8881,3422.2,3422.1,0.29261]
[1735658049940,4.0959,3422.2,3422.1,0.29261]
[1735658051047,4.3885,3422.2,3422.1,0.29261]
[1735658051251,4.0959,3422.2,3422.1,0.29261]
[1735658051541,3.6407,3422.2,3422.1,0.29261]
[1735658051847,3.6407,3422.2,3421.4,3.93947]
[1735658052049,0.29262,3422.0,3421.9,0.29262]
[1735658053049,3.6407,3422.2,3421.4,3.93947]
[1735658053248,0.29261,3422.1,3422.0,0.29261]
[1735658053547,0.29262,3422.0,3421.9,0.29262]
[1735658054145,3.6407,3422.2,3421.6,0.73162]
[1735658054348,0.29263,3421.9,3421.8,0.29263]
[1735658054650,3.6407,3422.2,3421.4,3.2078]
[1735658054955,3.6407,3422.2,3421.4,0.29266]
[1735658054956,0.29266,3421.5,3421.4,0.29266]
[1735658055146,3.2078,3421.7,3420.8,0.7318]
[1735658055347,3.2078,3421.2,3421.1,0.29269]
[1735658055548,0.4202,3421.4,3420.8,0.73179]
[1735658055844,3.628,3421.4,3421.3,0.29268]
[1735658056451,0.4202,3421.4,3421.3,0.29268]
[1735658056647,3.628,3421.4,3421.3,0.29268]
[1735658057155,0.4202,3421.4,3421.3,0.29268]
[1735658057449,3.628,3421.4,3421.3,0.29268]
[1735658058451,3.628,3421.4,3420.9,0.73177]
[1735658058652,3.628,3421.4,3421.2,0.29268]
[1735658058653,0.29268,3421.3,3421.2,0.29268]
[1735658058966,0.7317,3421.3,3420.6,3.2078]
[1735658059154,6.98156542,3421.4,3420.6,3.2078]
[1735658059155,0.29271,3421.0,3420.6,3.2078]
[1735658059454,0.2927,3421.1,3421.0,0.2927]
[1735658060552,0.29272,3420.8,3420.7,0.29272]
[1735658060759,0.72461,3421.0,3420.9,0.29271]
[1735658061458,0.4319,3421.0,3420.6,3.2078]
[1735658061660,3.2078,3420.9,3419.9,3.93979]
[1735658061853,3.2078,3420.5,3420.4,0.29275]
[1735658063160,3.2078,3420.5,3419.9,0.732]
[1735658063355,3.2078,3420.5,3420.4,0.29275]
[1735658064256,4.54992191,3420.6,3420.5,0.29274]
[1735658064860,4.54992191,3420.7,3420.2,0.73192]
[1735658065055,4.84265191,3420.7,3420.6,0.29274]
[1735658065458,4.54992191,3420.7,3420.6,0.29274]
[1735658066055,5.66171007,3420.7,3420.3,0.7319]
[1735658066260,5.66171007,3420.7,3420.6,2.6301616]
[1735658066858,5.66171007,3420.7,3420.6,0.29274]
[1735658067359,5.66171007,3420.7,3420.6,2.6301616]
[1735658067554,3.41310462,3420.9,3420.8,0.29272]
[1735658068563,4.55080616,3421.0,3420.6,2.3374216]
[1735658068765,4.55080616,3421.0,3420.9,0.29271]
[1735658069759,0.29273,3420.8,3420.7,0.29272]
[1735658070262,0.45,3420.9,3420.1,0.73195]
[1735658070469,0.29274,3420.6,3420.5,0.29274]
[1735658070968,0.4553,3420.6,3420.5,0.29274]
[1735658071563,6.11701007,3420.6,3419.7,3.3637616]
[1735658071763,6.40975007,3420.6,3420.5,0.29274]
[1735658071963,6.11701007,3420.6,3420.5,0.29274]
[1735658072364,6.40975007,3420.6,3420.5,0.29274]
[1735658072565,6.11701007,3420.6,3420.5,0.29274]
[1735658072765,0.74804,3420.6,3420.5,0.29274]
[1735658074466,0.29274,3420.5,3420.4,0.29275]
[1735658074659,0.74804,3420.6,3420.4,0.29275]
[1735658075067,0.4553,3420.6,3420.5,0.29274]
[1735658075269,0.4553,3420.6,3419.7,2.3374216]
[1735658075464,0.4553,3420.6,3419.8,0.73202]
[1735658075672,0.29275,3420.5,3420.3,0.29276]
[1735658075870,3.2078,3420.4,3420.3,0.29276]
[1735658076071,9.18419975,3420.4,3420.3,0.29276]
[1735658076261,8.89144975,3420.4,3420.3,0.29276]
[1735658076664,5.68364975,3420.4,3420.3,0.29276]
[1735658076865,5.68364975,3420.5,3420.0,2.3374216]
[1735658077065,5.68364975,3420.5,3420.4,0.29275]
[1735658078165,3.6631,3420.6,3420.5,0.29274]
[1735658078166,8.21008633,3420.6,3420.5,0.29274]
[1735658080172,5.00228633,3420.6,3420.5,0.29274]
[1735658080966,0.4553,3420.6,3420.5,0.29274]
[1735658081168,3.6631,3420.6,3420.5,0.29274]
[1735658081873,3.95584,3420.6,3420.0,3.0693816]
[1735658082475,3.95584,3420.6,3420.4,0.29275]
[1735658082873,3.95584,3420.6,3420.5,0.29274]
[1735658083072,3.6631,3420.6,3420.5,0.29274]
[1735658083375,9.34674975,3420.6,3420.5,0.29274]
[1735658084175,5.68364975,3420.6,3420.5,0.29274]
[1735658084571,5.68364975,3420.7,3420.4,0.2942]
[1735658084773,5.68364975,3420.7,3420.6,2.6301616]
[1735658085974,2.27364508,3420.8,3420.6,2.3374216]
[1735658086268,2.27364508,3420.8,3420.7,0.29273]
[1735658087268,3.41046763,3420.9,3420.6,3.6514216]
[1735658087563,3.41046763,3420.9,3420.8,2.6301416]
[1735658088366,3.40896763,3420.9,3420.8,7.6301416]
[1735658088573,1.99170763,3420.9,3420.8,7.6301416]
[1735658088769,2.27447546,3421.1,3420.8,7.3374216]
[1735658088969,2.27447546,3421.1,3421.0,0.29273]
[1735658089881,1.60807546,3421.1,3421.0,0.29273]
[1735658090579,1.60807546,3421.3,3421.2,0.29271]
[1735658090779,1.60807546,3421.3,3421.2,2.6301316]
[1735658091478,4.54729017,3421.8,3421.2,2.3374216]
[1735658091874,4.54729017,3421.8,3421.7,0.29267]
[1735658092376,7.75509017,3421.9,3421.8,0.29266]
[1735658093777,3.2078,3421.9,3421.8,0.29266]
[1735658095374,3.50045,3421.9,3421.8,0.29266]
[1735658095577,0.29268,3421.7,3421.6,0.29268]
[1735658095879,0.29267,3421.8,3421.7,0.29267]
[1735658096178,3.6285,3421.9,3421.3,1.313]
[1735658096378,3.6285,3421.9,3421.8,0.29266]
[1735658096576,3.2078,3421.9,3421.8,0.29266]
[1735658096879,3.2078,3421.9,3421.8,2.6300816]
[1735658097281,3.2078,3421.9,3421.8,0.29266]
[1735658100077,3.2078,3421.9,3421.3,2.04477]
[1735658100078,0.29267,3421.8,3421.7,0.29267]
[1735658100382,0.29268,3421.6,3421.5,0.29268]
[1735658100582,0.2927,3421.4,3421.3,0.2927]
[1735658100777,3.5005,3421.4,3421.3,0.2927]
[1735658100979,3.2078,3421.4,3420.7,2.04489]
[1735658101182,3.50054,3421.0,3420.9,0.29273]
[1735658101483,3.2078,3421.0,3420.9,0.29273]
[1735658101688,3.50053,3421.0,3420.9,0.29273]
[1735658102387,3.2078,3421.0,3420.9,0.29273]
[1735658102779,3.50053,3421.0,3420.9,0.29273]
[1735658103688,3.2078,3421.0,3420.9,0.29273]
[1735658103995,4.54729017,3421.1,3421.0,0.29273]
[1735658104180,3.2078,3421.1,3421.0,0.29273]
[1735658104379,5.00489017,3421.2,3421.1,0.29272]
[1735658104879,5.29760017,3421.2,3421.1,0.29272]
[1735658105080,0.29274,3421.0,3420.9,0.29273]
[1735658105279,3.2078,3421.0,3420.9,0.29273]
[1735658105786,0.4576,3421.2,3421.1,0.29272]
[1735658109182,3.2078,3421.5,3421.4,0.2927]
[1735658111988,3.2078,3421.5,3421.0,0.73183]
[1735658112186,1.1762,3421.4,3421.3,0.29271]
[1735658112388,0.8835,3421.4,3420.6,1.313]
[1735658112584,3.2078,3421.0,3420.6,1.313]
[1735658112789,3.50053,3421.0,3420.9,0.29273]
[1735658113085,0.29275,3420.8,3420.7,0.29275]
[1735658113286,3.2078,3421.0,3420.0,0.73203]
[1735658113486,3.2078,3420.3,3420.2,0.2928]
[1735658113889,0.4239,3420.7,3420.2,0.2928]
[1735658113890,3.6317,3420.7,3420.6,0.29277]
[1735658114289,8.17899017,3420.7,3420.6,0.29277]
[1735658115081,4.97119017,3420.7,3420.6,0.29277]
[1735658115285,4.54729017,3420.9,3420.4,6.8582216]
[1735658115589,4.54729017,3420.9,3420.8,0.29275]
[1735658116290,5.68364975,3421.1,3421.0,0.29272]
[1735658116291,0.29273,3421.1,3421.0,0.29272]
[1735658116494,8.61579017,3421.2,3420.4,3.6504216]
[1735658116792,8.61579017,3421.2,3420.5,0.73194]
[1735658117086,0.29274,3421.0,3420.9,0.29273]
[1735658117285,8.61579017,3421.2,3420.5,0.29277]
[1735658117286,0.29277,3420.6,3420.5,0.29277]
[1735658117484,3.50057,3420.6,3420.5,0.29277]
[1735658117684,3.2078,3420.6,3420.5,0.29277]
[1735658118085,3.95927,3420.6,3420.5,0.29277]
[1735658118387,3.95927,3420.6,3420.4,0.29277]
[1735658118388,0.29278,3420.5,3420.4,0.29277]
[1735658118588,0.429,3420.5,3420.4,0.29277]
[1735658118790,0.429,3420.5,3419.7,0.7321]
[1735658118985,3.2078,3420.0,3419.7,0.7321]
[1735658119291,3.2078,3420.0,3419.9,0.29283]
[1735658119994,0.29283,3419.9,3419.8,0.29283]
[1735658120186,3.2078,3420.0,3419.1,0.73223]
[1735658120387,2.3374216,3420.2,3419.1,0.73223]
[1735658120388,3.2078,3419.5,3419.1,0.73223]
[1735658120584,3.2078,3419.5,3419.4,0.29287]
[1735658123790,3.50066,3419.5,3419.4,0.29287]
[1735658123991,3.2078,3419.5,3418.6,6.2775516]
[1735658124186,3.2078,3419.1,3418.6,3.2078]
[1735658124392,3.2078,3418.7,3418.6,0.29294]
[1735658129394,3.50073,3418.7,3418.5,0.29294]
[1735658129598,3.50073,3418.7,3417.7,3.2078]
[1735658129599,5.5452216,3418.7,3417.7,3.2078]
[1735658129799,0.29297,3418.3,3418.1,0.29297]
[1735658129997,0.4218,3418.2,3418.1,0.29297]
[1735658131895,0.4559,3418.3,3418.2,0.29297]
[1735658132206,3.2078,3418.7,3418.6,0.29294]
[1735658132397,3.2078,3418.7,3418.5,0.29294]
[1735658132593,0.29296,3418.4,3418.2,0.29297]
[1735658132804,3.6676,3418.3,3418.2,0.29297]
[1735658133106,4.0926,3418.3,3418.2,0.29297]
[1735658134101,3.6328,3418.3,3418.2,0.29297]
[1735658134599,3.2078,3418.3,3418.2,0.29297]
[1735658136299,3.2078,3418.3,3418.2,2.6303916]
[1735658137011,3.2078,3418.3,3418.2,0.29297]
[1735658137406,3.50073,3418.7,3418.6,0.29294]
[1735658137810,0.29296,3418.5,3418.4,0.29295]
[1735658138112,0.29296,3418.5,3416.5,0.2928]
[1735658138113,0.29298,3418.2,3418.1,0.29297]
[1735658138310,3.2078,3418.2,3418.1,0.29297]
[1735658139406,4.0937,3418.2,3418.1,0.29297]
[1735658139606,4.38667,3418.2,3418.1,0.29297]
[1735658139802,4.0937,3418.2,3418.1,0.29297]
[1735658140409,4.38667,3418.2,3418.1,0.29297]
[1735658141315,0.29299,3418.0,3417.9,0.29299]
[1735658141506,2.3374216,3418.1,3417.0,0.2292201]
[1735658141814,3.50084,3417.5,3417.4,0.29303]
[1735658142111,0.29305,3417.3,3417.2,0.29305]
[1735658142507,0.8649,3417.4,3417.2,0.29305]
[1735658142712,0.29307,3417.1,3417.0,0.29307]
[1735658142911,0.29307,3417.1,3416.9,0.29308]
[1735658142912,0.29308,3417.0,3416.9,0.29308]
[1735658143105,3.2078,3417.1,3416.3,0.73282]
[1735658143310,3.50091,3416.7,3416.6,0.29311]
[1735658143503,3.2078,3416.7,3416.6,0.29311]
[1735658144009,0.4394,3417.3,3416.2,2.3374216]
[1735658144010,3.2078,3417.1,3416.2,2.3374216]
[1735658144311,3.2078,3417.1,3417.0,0.29307]
[1735658144810,0.4357,3417.4,3417.3,0.29305]
[1735658146216,0.4357,3417.4,3416.8,0.73272]
[1735658146411,3.2078,3417.1,3417.0,0.29307]
[1735658149918,0.29309,3416.9,3416.7,0.2931]
[1735658150118,0.29309,3416.8,3416.6,0.2931]
[1735658150418,0.4282,3417.0,3416.9,0.29308]
[1735658151116,3.2078,3417.1,3416.6,2.3374216]
[1735658151320,3.2078,3417.1,3417.0,0.29307]
[1735658154223,0.4357,3417.4,3417.3,0.29305]
[1735658154614,3.6396,3417.5,3417.2,2.3374216]
[1735658154615,0.4318,3417.5,3417.2,2.3374216]
[1735658154814,3.2078,3417.9,3417.8,0.29301]
[1735658154815,3.6509,3417.9,3417.8,0.29301]
[1735658155227,3.6509,3417.9,3417.3,1.314]
[1735658155524,3.9439,3417.9,3417.8,0.29301]
[1735658155725,3.6509,3417.9,3417.8,0.29301]
[1735658157117,3.2078,3418.3,3417.8,2.3374216]
[1735658157325,0.4424,3418.5,3418.4,0.29295]
[1735658157529,3.2078,3418.7,3418.6,0.29294]
[1735658157826,3.2078,3418.7,3418.6,2.6303616]
[1735658158227,3.2078,3418.7,3418.6,0.29294]
[1735658160824,3.2078,3418.7,3418.1,2.79807772]
[1735658161129,0.29295,3418.5,3418.0,0.73248]
[1735658161326,0.29295,3418.5,3418.4,0.29295]
[1735658161830,0.4344,3418.6,3417.9,1.314]
[1735658162032,0.4344,3418.6,3418.5,0.29295]
[1735658163126,3.2078,3418.7,3418.1,3.53053772]
[1735658163325,3.2078,3418.7,3418.6,0.29294]
[1735658163532,3.6663,3419.1,3419.0,0.2929]
[1735658165122,0.29291,3418.9,3418.7,0.29293]
[1735658165325,0.29291,3419.0,3418.9,0.29291]
[1735658165529,0.29292,3418.9,3418.7,0.29292]
[1735658165917,5.0,3418.9,3417.7,2.79807772]
[1735658166125,0.29297,3418.2,3418.1,0.29297]
[1735658166529,1.16047,3418.2,3418.1,0.29297]
[1735658166730,1.16047,3418.2,3418.0,0.29298]
[1735658167125,0.8675,3418.2,3417.5,0.4551]
[1735658167326,0.8675,3418.2,3418.1,0.29298]
[1735658167526,1.16048,3418.2,3417.6,0.73256]
[1735658167727,0.8675,3418.2,3418.1,0.29298]
[1735658171139,0.8675,3418.2,3417.4,3.2078]
[1735658171330,3.2078,3417.9,3417.5,0.73258]
[1735658171540,3.2078,3417.9,3417.8,0.29301]
[1735658172733,3.5008,3417.9,3417.8,0.29301]
[1735658172933,0.29301,3417.8,3417.7,0.29301]
[1735658173537,3.2078,3417.9,3417.6,0.29302]
[1735658173538,0.29302,3417.7,3417.6,0.29302]
[1735658173735,3.2078,3417.9,3417.1,0.73266]
[1735658173933,0.29301,3417.8,3417.7,0.29301]
[1735658174134,6.88068699,3417.8,3417.7,0.29301]
[1735658174463,6.88068699,3417.8,3417.1,0.73266]
[1735658174464,6.58767699,3417.8,3416.9,0.7327]
[1735658174765,3.2078,3417.4,3416.9,0.7327]
[1735658174934,0.29305,3417.3,3416.7,0.73276]
[1735658175136,3.2078,3417.0,3415.7,2.79807772]
[1735658175340,3.2078,3416.2,3415.7,2.0509]
[1735658175637,3.2078,3416.2,3415.6,4.55854167]
[1735658175935,3.2078,3415.8,3415.6,4.55854167]
[1735658176238,3.2078,3415.8,3415.7,0.29319]
[1735658176638,0.4351,3416.0,3415.9,0.29317]
[1735658177142,3.6429,3416.0,3415.0,0.73311]
[1735658177338,3.6429,3416.0,3415.8,0.29317]
[1735658177535,3.93606,3416.0,3415.8,0.29318]
[1735658177731,0.29318,3415.8,3415.6,0.29319]
[1735658177939,0.29317,3415.9,3415.7,0.29318]
[1735658178238,3.6429,3416.0,3415.9,0.29317]
[1735658178442,3.39263052,3416.2,3416.1,0.29315]
[1735658179641,3.2078,3416.9,3416.1,7.79807772]
[1735658179941,3.2078,3416.9,3416.8,0.29309]
[1735658181742,3.50089,3416.9,3416.7,0.29309]
[1735658182243,3.50089,3416.9,3416.2,2.04586]
[1735658182244,3.2078,3416.9,3416.8,0.29309]
[1735658183041,0.4293,3417.2,3416.7,2.79807772]
[1735658183233,0.4293,3417.2,3417.1,0.29307]
[1735658183945,3.39263052,3417.3,3417.1,4.11107772]
[1735658184152,3.39263052,3417.7,3417.6,0.29302]
[1735658185642,0.71639,3418.0,3417.9,0.293]
[1735658185842,0.4234,3418.0,3417.9,0.293]
[1735658187453,0.71639,3418.0,3417.9,0.293]
[1735658187759,0.4234,3418.0,3417.9,0.293]
[1735658187954,0.4234,3418.0,3417.7,0.29301]
[1735658188255,3.2078,3417.8,3416.9,4.38041]
[1735658188451,0.29301,3417.7,3417.5,0.29303]
[1735658188654,3.2078,3417.8,3417.7,0.29301]
[1735658189253,3.81603052,3418.0,3417.6,1.313]
[1735658189459,3.39263052,3418.0,3417.9,3.09107772]
[1735658190060,3.39263052,3418.5,3418.4,0.29295]
[1735658191154,6.60043052,3418.7,3418.0,0.73248]
[1735658191349,6.60043052,3418.7,3418.6,0.29294]
[1735658191556,3.39263052,3418.7,3418.6,0.29294]
[1735658192455,1.87266052,3418.7,3418.6,5.29294]
[1735658192667,4.54729017,3419.4,3419.3,0.29288]
[1735658192955,4.54729017,3419.4,3419.3,4.40395772]
[1735658193357,4.54729017,3419.4,3419.3,9.40395772]
[1735658193566,2.27785017,3419.4,3419.3,9.40395772]
[1735658193860,8.98117157,3420.4,3419.3,9.40395772]
[1735658193861,3.2078,3420.3,3420.2,0.2928]
[1735658195455,0.8972,3420.6,3419.7,0.73211]
[1735658195757,0.4411,3420.6,3420.5,0.29277]
[1735658196755,3.6625,3420.7,3420.1,0.73202]
[1735658196965,3.6625,3420.7,3420.6,0.29277]
[1735658198256,3.6625,3420.7,3420.2,2.79807772]
[1735658198465,3.6625,3420.7,3420.6,0.29277]